bitfinex/quotes_BTCUSD_20240718
["timestamp","ask_amount","ask_price","bid_price","bid_amount"]
[1721277879408,0.1476,64783.0,64782.0,2.38961542]
[1721277882177,0.1498,64791.0,64790.0,0.154344]
[1721277882583,0.1498,64791.0,64790.0,1.0625013]
[1721277883538,0.1498,64791.0,64790.0,1.0875013]
[1721277884899,0.1498,64791.0,64790.0,1.3961903]
[1721277885096,0.1498,64791.0,64790.0,1.4191903]
[1721277885951,0.1498,64791.0,64790.0,1.26601501]
[1721277886109,0.1498,64791.0,64790.0,1.53535597]
[1721277886473,0.1498,64791.0,64790.0,1.23866697]
[1721277886605,0.1498,64791.0,64790.0,1.22666697]
[1721277886786,0.1498,64791.0,64790.0,1.11249649]
[1721277887436,0.1498,64791.0,64790.0,1.12649649]
[1721277888471,0.1498,64791.0,64790.0,1.09949649]
[1721277889285,0.1498,64791.0,64790.0,0.76780749]
[1721277889441,0.1498,64791.0,64790.0,0.78180749]
[1721277890106,0.1498,64791.0,64790.0,0.31873675]
[1721277890261,0.2202,64791.0,64790.0,0.16439275]
[1721277890463,0.2202,64791.0,64790.0,1.44039275]
[1721277900010,0.2202,64791.0,64790.0,1.31222227]
[1721277900596,0.2202,64791.0,64790.0,1.46656627]
[1721277901453,0.2202,64791.0,64790.0,1.31222227]
[1721277903022,0.2202,64791.0,64790.0,1.46656627]
[1721277903211,0.1498,64791.0,64790.0,1.46656627]
[1721277904281,0.1498,64791.0,64790.0,1.59474769]
[1721277904890,0.1498,64791.0,64790.0,1.5947455]
[1721277906269,0.1498,64791.0,64790.0,1.9034345]
[1721277906737,0.1498,64791.0,64790.0,2.36650524]
[1721277907074,0.0833,64791.0,64790.0,2.36650524]
[1721277907288,0.00083,64792.0,64791.0,0.77171]
[1721277907484,0.00083,64792.0,64791.0,1.07727097]
[1721277907766,0.00083,64792.0,64791.0,1.08548429]
[1721277908174,0.00083,64792.0,64791.0,1.0854742]
[1721277908324,0.00083,64792.0,64791.0,2.3614742]
[1721277908531,0.00083,64792.0,64791.0,2.24730506]
[1721277908757,0.00083,64792.0,64791.0,2.37547414]
[1721277908994,0.00083,64792.0,64791.0,2.38947414]
[1721277911395,0.00083,64792.0,64791.0,2.3894744]
[1721277915429,0.00083,64792.0,64791.0,2.6981584]
[1721277915653,0.00083,64792.0,64791.0,2.8406584]
[1721277916457,0.00083,64792.0,64791.0,2.8126584]
[1721277916656,0.00083,64792.0,64791.0,2.8266584]
[1721277916991,0.00083,64792.0,64791.0,2.8406584]
[1721277917671,0.00083,64792.0,64791.0,3.30232716]
[1721277917994,0.00083,64792.0,64791.0,3.21885145]
[1721277918159,0.00083,64792.0,64791.0,3.20485145]
[1721277918363,0.00083,64792.0,64791.0,3.23284787]
[1721277918833,0.00083,64792.0,64791.0,3.21884787]
[1721277919329,0.00083,64792.0,64791.0,3.28825351]
[1721277919528,0.00083,64792.0,64791.0,3.79693751]
[1721277919675,0.00083,64792.0,64791.0,3.81093751]
[1721277919870,0.00083,64792.0,64791.0,3.76093751]
[1721277920078,0.00083,64792.0,64791.0,3.74153187]
[1721277920280,0.00083,64792.0,64791.0,3.81093636]
[1721277920484,0.00083,64792.0,64791.0,3.76093636]
[1721277920684,0.00083,64792.0,64791.0,3.41843636]
[1721277920888,0.00083,64792.0,64791.0,3.07623065]
[1721277921202,0.00083,64792.0,64791.0,2.99282616]
[1721277921402,0.00083,64792.0,64791.0,3.00682616]
[1721277921601,0.00083,64792.0,64791.0,2.99282616]
[1721277922348,0.00083,64792.0,64791.0,3.38482616]
[1721277922493,0.00083,64792.0,64791.0,3.39882616]
[1721277922693,0.00083,64792.0,64791.0,3.45421893]
[1721277922939,0.00083,64792.0,64791.0,3.44021893]
[1721277923137,0.00083,64792.0,64791.0,3.46821893]
[1721277923315,0.00083,64792.0,64791.0,3.81042027]
[1721277923518,0.00083,64792.0,64791.0,3.79642027]
[1721277924346,0.00083,64792.0,64791.0,3.4541905]
[1721277924555,0.00083,64792.0,64791.0,3.71301748]
[1721277924776,0.00083,64792.0,64791.0,3.74101748]
[1721277925156,0.00083,64792.0,64791.0,3.8103693]
[1721277925632,0.00083,64792.0,64791.0,3.41817416]
[1721277925770,0.00083,64792.0,64791.0,3.27617416]
[1721277926171,0.00083,64792.0,64791.0,3.20682234]
[1721277927605,0.00083,64792.0,64791.0,3.20682217]
[1721277928122,0.00528,64795.0,64794.0,1.080345]
[1721277928320,0.00528,64795.0,64794.0,1.38587585]
[1721277928479,0.00528,64795.0,64794.0,1.39404224]
[1721277929073,0.00528,64795.0,64794.0,2.67004224]
[1721277929497,0.00528,64795.0,64794.0,2.68404224]
[1721277929697,0.00528,64795.0,64794.0,2.69804224]
[1721277930804,0.00528,64795.0,64794.0,2.6980453]
[1721277931435,0.00528,64795.0,64794.0,3.1340153]
[1721277931640,0.00528,64795.0,64794.0,3.2958153]
[1721277932959,0.00528,64795.0,64794.0,3.2818153]
[1721277933159,0.00528,64795.0,64794.0,3.2678153]
[1721277933364,0.00528,64795.0,64794.0,3.67932061]
[1721277933662,0.00528,64795.0,64794.0,3.60998421]
[1721277933937,0.00528,64795.0,64794.0,3.67405213]
[1721277934206,0.00528,64795.0,64794.0,3.70497213]
[1721277934411,0.00528,64795.0,64794.0,3.71897213]
[1721277934815,0.00528,64795.0,64794.0,3.70497213]
[1721277935203,0.00528,64795.0,64794.0,3.82534756]
[1721277935408,0.00528,64795.0,64794.0,3.81134756]
[1721277935603,0.00528,64795.0,64794.0,3.65824756]
[1721277935770,0.00528,64795.0,64794.0,2.80723557]
[1721277935974,0.14508,64795.0,64794.0,2.3663753]
[1721277937071,0.14508,64795.0,64794.0,2.36638739]
[1721277937333,0.14508,64795.0,64794.0,2.22422313]
[1721277937699,0.14508,64795.0,64794.0,2.35238756]
[1721277938101,0.14508,64795.0,64794.0,2.36638756]
[1721277938310,0.14508,64795.0,64794.0,2.21200582]
[1721277938536,0.14508,64795.0,64794.0,2.19800582]
[1721277939065,0.14508,64795.0,64794.0,2.21200582]
[1721277940391,0.14508,64795.0,64794.0,2.08384139]
[1721277940570,0.14508,64795.0,64794.0,2.21200582]
[1721277943633,0.14508,64795.0,64794.0,2.08384139]
[1721277943780,0.14508,64795.0,64794.0,2.21200582]
[1721277946993,0.14508,64795.0,64794.0,2.21200519]
[1721277947378,0.14508,64795.0,64794.0,2.21200545]
[1721277948808,0.14508,64795.0,64794.0,2.36638719]
[1721277949126,0.08498,64795.0,64794.0,2.38938719]
[1721277949350,0.08498,64795.0,64794.0,2.69805719]
[1721277950195,0.08498,64795.0,64794.0,2.69804995]
[1721277950403,0.08498,64795.0,64794.0,2.68404995]
[1721277950801,0.08498,64795.0,64794.0,2.69804995]
[1721277951002,0.00528,64795.0,64794.0,2.69804995]
[1721277951225,0.00528,64795.0,64794.0,2.68404995]
[1721277951985,0.00528,64795.0,64794.0,2.69804995]
[1721277952392,0.00528,64795.0,64794.0,2.68404995]
[1721277952598,0.00528,64795.0,64794.0,2.69804995]
[1721277953618,0.00528,64795.0,64794.0,2.69805164]
[1721277954643,0.00528,64795.0,64794.0,2.82995164]
[1721277954848,0.00528,64795.0,64794.0,2.90035164]
[1721277955052,0.00528,64795.0,64794.0,3.04658817]
[1721277955252,0.00528,64795.0,64794.0,3.78136356]
[1721277955426,0.00528,64795.0,64794.0,3.71200876]
[1721277956512,0.00528,64795.0,64794.0,3.69800876]
[1721277956683,0.00528,64795.0,64794.0,3.69800352]
[1721277956888,0.00528,64795.0,64794.0,3.71200352]
[1721277957094,0.00528,64795.0,64794.0,3.67633313]
[1721277957302,0.00528,64795.0,64794.0,3.8044745]
[1721277957497,0.00528,64795.0,64794.0,3.7904745]
[1721277957784,0.00528,64795.0,64794.0,3.8044745]
[1721277957988,0.00528,64795.0,64794.0,3.69797888]
[1721277958193,0.00528,64795.0,64794.0,3.80447416]
[1721277959686,0.00528,64795.0,64794.0,3.79047416]
[1721277959959,0.00528,64795.0,64794.0,3.790474]
[1721277960135,0.00528,64795.0,64794.0,3.804474]
[1721277960761,0.00528,64795.0,64794.0,3.672574]
[1721277960965,0.00528,64795.0,64794.0,3.14021004]
[1721277961170,0.00528,64795.0,64794.0,2.84428425]
[1721277961466,0.00528,64795.0,64794.0,2.7980345]
[1721277962227,0.00528,64795.0,64794.0,2.65589313]
[1721277962449,0.00528,64795.0,64794.0,2.79804755]
[1721277962944,0.00528,64795.0,64794.0,2.78404755]
[1721277963158,0.00528,64795.0,64794.0,2.79804755]
[1721277966952,0.00528,64795.0,64794.0,2.66989313]
[1721277967110,0.00528,64795.0,64794.0,2.79804716]
[1721277967711,0.00528,64795.0,64794.0,2.66989313]
[1721277967915,0.00528,64795.0,64794.0,2.79804716]
[1721277969480,0.00528,64795.0,64794.0,3.23291716]
[1721277969596,0.00528,64795.0,64794.0,3.36481716]
[1721277971779,0.00528,64795.0,64794.0,3.39573716]
[1721277972378,0.00528,64795.0,64794.0,3.72920284]
[1721277972534,0.00528,64795.0,64794.0,3.65983522]
[1721277972734,0.00528,64795.0,64794.0,3.67383522]
[1721277974970,0.00528,64795.0,64794.0,3.26758313]
[1721277977478,0.00528,64795.0,64794.0,3.702195]
[1721277978311,0.00528,64795.0,64794.0,3.76626358]
[1721277979155,0.00528,64795.0,64794.0,3.76626058]
[1721277980238,0.00528,64795.0,64794.0,3.68216489]
[1721277980774,0.00528,64795.0,64794.0,3.77461086]
[1721277982787,0.00528,64795.0,64794.0,3.68216063]
[1721277983003,0.00528,64795.0,64794.0,3.68307363]
[1721277983962,0.00528,64795.0,64794.0,3.54537363]
[1721277985975,0.00528,64795.0,64794.0,3.6378163]
[1721277986193,0.00528,64795.0,64794.0,3.13914613]
[1721277986397,0.00528,64795.0,64794.0,3.545374]
[1721277987293,0.00528,64795.0,64794.0,3.54537329]
[1721277988120,0.00528,64795.0,64794.0,3.66093192]
[1721277988947,0.00528,64795.0,64794.0,3.54537329]
[1721277989801,0.00528,64795.0,64794.0,3.13914613]
[1721277989969,0.00528,64795.0,64794.0,3.54537718]
[1721277992180,0.00528,64795.0,64794.0,3.66094773]
[1721277992815,0.06578,64795.0,64794.0,3.42497718]
[1721277992934,0.06578,64795.0,64794.0,3.49537718]
[1721277993334,0.06578,64795.0,64794.0,3.80445906]
[1721277993557,0.00528,64795.0,64794.0,3.80445906]
[1721277994179,0.00528,64795.0,64794.0,3.9200761]
[1721277994605,0.00528,64795.0,64794.0,3.80445906]
[1721277994831,0.00528,64795.0,64794.0,3.92009594]
[1721277995023,0.00528,64795.0,64794.0,3.97009594]
[1721277995630,0.00528,64795.0,64794.0,3.85445906]
[1721277996411,0.00528,64795.0,64794.0,3.51229052]
[1721277996655,0.00528,64795.0,64794.0,3.85496953]
[1721277996993,0.00528,64795.0,64794.0,3.85477874]
[1721277997171,0.00528,64795.0,64794.0,4.01494587]
[1721277997379,0.00528,64795.0,64794.0,4.01494187]
[1721277998697,0.00528,64795.0,64794.0,4.01494597]
[1721277999667,0.00528,64795.0,64794.0,3.85477856]
[1721277999866,0.00528,64795.0,64794.0,3.88685194]
[1721278000039,0.00528,64795.0,64794.0,4.32365587]
[1721278000612,0.00528,64795.0,64794.0,4.01498587]
[1721278000804,0.00528,64795.0,64794.0,4.32365587]
[1721278001581,0.00528,64795.0,64794.0,4.32365602]
[1721278001970,0.00528,64795.0,64794.0,4.30965602]
[1721278002404,1e-08,64795.0,64794.0,4.80267147]
[1721278002619,1e-08,64795.0,64794.0,4.94267147]
[1721278002733,1e-08,64795.0,64794.0,5.02521195]
[1721278002936,1e-08,64797.0,64796.0,2.118555]
[1721278003167,1e-08,64797.0,64796.0,4.02427226]
[1721278003370,1e-08,64797.0,64796.0,4.55613075]
[1721278004502,1e-08,64797.0,64796.0,4.57013075]
[1721278005994,1e-08,64797.0,64796.0,4.58413075]
[1721278006632,1e-08,64797.0,64796.0,4.40250834]
[1721278006777,1e-08,64797.0,64796.0,4.58438904]
[1721278007043,1e-08,64797.0,64796.0,4.584483]
[1721278007240,1e-08,64797.0,64796.0,4.893144]
[1721278007941,1e-08,64797.0,64796.0,4.879144]
[1721278008625,1e-08,64797.0,64796.0,4.893144]
[1721278008852,1e-08,64797.0,64796.0,4.584483]
[1721278009032,1e-08,64797.0,64796.0,4.654883]
[1721278009191,1e-08,64797.0,64796.0,4.640883]
[1721278009384,1e-08,64797.0,64796.0,4.654883]
[1721278009811,1e-08,64797.0,64796.0,4.65533598]
[1721278010613,1e-08,64797.0,64796.0,4.51533598]
[1721278011633,1e-08,64797.0,64796.0,4.20667498]
[1721278011836,0.14110001,64797.0,64796.0,4.17106509]
[1721278012064,0.14110001,64797.0,64796.0,4.02350757]
[1721278012295,0.14110001,64797.0,64796.0,3.84108475]
[1721278012514,0.14110001,64797.0,64796.0,4.02350757]
[1721278012726,0.14110001,64797.0,64796.0,3.84108475]
[1721278012942,0.14110001,64797.0,64796.0,3.94549207]
[1721278013154,0.14110001,64797.0,64796.0,4.02355707]
[1721278013331,0.14110001,64797.0,64796.0,3.86413425]
[1721278013540,0.14110001,64797.0,64796.0,4.04655707]
[1721278013771,0.14110001,64797.0,64796.0,4.03255707]
[1721278013978,0.14110001,64797.0,64796.0,4.04655707]
[1721278014179,0.14110001,64797.0,64796.0,4.03255707]
[1721278014602,0.14110001,64797.0,64796.0,4.04655707]
[1721278014823,0.14110001,64797.0,64796.0,4.03255707]
[1721278015263,0.14110001,64797.0,64796.0,4.04655707]
[1721278015483,0.14110001,64797.0,64796.0,4.04747007]
[1721278015706,0.14110001,64797.0,64796.0,3.99747007]
[1721278016124,0.14110001,64797.0,64796.0,3.59362996]
[1721278016292,0.14110001,64797.0,64796.0,3.99983856]
[1721278016498,0.14110001,64797.0,64796.0,3.2807238]
[1721278016706,0.14110001,64797.0,64796.0,3.99983914]
[1721278019361,0.14110001,64797.0,64796.0,3.93577415]
[1721278019625,0.14110001,64797.0,64796.0,3.99983841]
[1721278020054,0.14110001,64797.0,64796.0,3.69117741]
[1721278020276,0.14110001,64797.0,64796.0,3.40508101]
[1721278020502,0.14110001,64797.0,64796.0,3.05955427]
[1721278020710,0.14110001,64797.0,64796.0,2.43658891]
[1721278021156,0.14110001,64797.0,64796.0,2.41346696]
[1721278021603,0.14110001,64797.0,64796.0,2.39946696]
[1721278021821,0.14110001,64797.0,64796.0,2.27133698]
[1721278022036,0.14110001,64797.0,64796.0,2.50848182]
[1721278022281,0.14110001,64797.0,64796.0,2.52248182]
[1721278022748,0.14110001,64797.0,64796.0,2.53648182]
[1721278023199,0.14110001,64797.0,64796.0,2.52248182]
[1721278024491,0.14110001,64797.0,64796.0,2.47623048]
[1721278024742,0.14110001,64797.0,64796.0,2.49023048]
[1721278025175,0.14110001,64797.0,64796.0,2.3620818]
[1721278025386,0.14110001,64797.0,64796.0,2.49023062]
[1721278025598,0.14110001,64797.0,64796.0,2.3620818]
[1721278025822,0.14110001,64797.0,64796.0,2.49023095]
[1721278026222,0.14110001,64797.0,64796.0,2.49023105]
[1721278028479,0.14110001,64797.0,64796.0,2.49023794]
[1721278031258,0.14110001,64797.0,64796.0,2.05857694]
[1721278031459,0.14110001,64797.0,64796.0,1.46737806]
[1721278032025,0.14110001,64797.0,64796.0,1.31304806]
[1721278032232,0.14110001,64797.0,64796.0,1.29904806]
[1721278032470,0.91274001,64797.0,64796.0,1.29904806]
[1721278032670,0.91274001,64797.0,64782.0,1.276]
[1721278032671,0.308699,64788.0,64782.0,1.276]
[1721278032876,0.0611,64784.0,64783.0,1.276]
[1721278033040,0.2112,64784.0,64783.0,1.276]
[1721278033243,0.365559,64784.0,64783.0,1.276]
[1721278034313,0.674277,64784.0,64783.0,1.276]
[1721278034668,0.675277,64784.0,64783.0,1.285]
[1721278035083,0.675277,64784.0,64783.0,1.276]
[1721278035387,0.675277,64784.0,64783.0,1.286]
[1721278036012,0.676277,64784.0,64783.0,1.295]
[1721278036213,0.676277,64784.0,64783.0,0.019]
[1721278036460,0.984995,64784.0,64783.0,0.019]
[1721278036671,0.676277,64784.0,64783.0,0.019]
[1721278037014,0.982995,64784.0,64783.0,0.01]
[1721278037425,0.982995,64784.0,64776.0,1.276]
[1721278037426,0.1412,64778.0,64776.0,1.276]
[1721278037627,0.2116,64777.0,64776.0,1.58475874]
[1721278037827,0.2116,64777.0,64776.0,1.43038174]
[1721278038962,0.2126,64777.0,64776.0,1.43038174]
[1721278039375,0.2126,64777.0,64776.0,1.44438174]
[1721278040375,0.2126,64777.0,64776.0,1.4515505]
[1721278040568,0.2126,64777.0,64776.0,1.4375505]
[1721278040874,0.8667991,64777.0,64776.0,0.00716876]
[1721278041086,0.463147,64774.0,64773.0,0.000913]
[1721278041272,0.675447,64774.0,64773.0,0.000913]
[1721278041574,0.984212,64774.0,64773.0,0.000913]
[1721278042256,1.292977,64774.0,64773.0,0.000913]
[1721278042434,1.4223747,64774.0,64773.0,0.000913]
[1721278042828,1.292977,64774.0,64773.0,0.000913]
[1721278043987,1.294977,64774.0,64773.0,0.000913]
[1721278044199,1.292977,64774.0,64773.0,0.000913]
[1721278044603,1.227577,64774.0,64773.0,0.000913]
[1721278044789,1.297977,64774.0,64773.0,0.000913]
[1721278044962,1.296977,64774.0,64773.0,0.000913]
[1721278045364,1.299977,64774.0,64773.0,0.000913]
[1721278049933,1.4299747,64774.0,64773.0,0.000913]
[1721278051775,1.299977,64774.0,64773.0,0.000913]
[1721278059895,1.229577,64774.0,64773.0,0.000913]
[1721278060098,0.612047,64774.0,64773.0,0.000913]
[1721278060319,0.682447,64774.0,64773.0,0.000913]
[1721278061339,1.07661009,64774.0,64773.0,0.000913]
[1721278064179,1.07361009,64774.0,64773.0,0.000913]
[1721278064466,1.06961009,64774.0,64773.0,0.000913]
[1721278064610,1.07361009,64774.0,64773.0,0.000913]
[1721278065348,0.76484509,64774.0,64773.0,0.000913]
[1721278065506,0.76784509,64774.0,64773.0,0.000913]
[1721278069444,0.76484509,64774.0,64773.0,0.000913]
[1721278069805,0.76684509,64774.0,64773.0,0.000913]
[1721278070265,0.76084509,64774.0,64773.0,0.000913]
[1721278070650,0.76684509,64774.0,64773.0,0.000913]
[1721278071169,0.76384509,64774.0,64773.0,0.000913]
[1721278072310,1.07261009,64774.0,64773.0,0.000913]
[1721278072469,1.07461009,64774.0,64773.0,0.000913]
[1721278072680,1.2129464,64774.0,64773.0,0.000913]
[1721278073705,1.07461009,64774.0,64773.0,0.000913]
[1721278085519,1.38337509,64774.0,64773.0,0.000913]
[1721278085727,1.07461009,64774.0,64773.0,0.000913]
[1721278085939,1.38337509,64774.0,64773.0,0.000913]
[1721278086139,1.41864874,64774.0,64773.0,0.000913]
[1721278086457,1.61914878,64774.0,64773.0,0.000913]
[1721278086788,1.64222402,64774.0,64773.0,0.000913]
[1721278087525,1.41864874,64774.0,64773.0,0.000913]
[1721278087723,1.57303048,64774.0,64773.0,0.000913]
[1721278088075,1.50263048,64774.0,64773.0,0.000913]
[1721278088282,1.57303048,64774.0,64773.0,0.000913]
[1721278088510,1.57103048,64774.0,64773.0,0.000913]
[1721278088885,1.57003048,64774.0,64773.0,0.001913]
[1721278089213,1.54375683,64774.0,64773.0,0.002913]
[1721278089417,1.65915271,64774.0,64773.0,0.002913]
[1721278089754,1.57944063,64774.0,64773.0,0.002913]
[1721278092698,1.5794763,64774.0,64773.0,0.002913]
[1721278092867,1.5794836,64774.0,64773.0,0.002913]
[1721278093139,1.57948493,64774.0,64773.0,0.002913]
[1721278093349,2.2853695,64774.0,64773.0,0.002913]
[1721278093556,0.154431,64754.0,64752.0,1.276]
[1721278093758,0.154431,64754.0,64750.0,0.0634]
[1721278093759,0.0704,64753.0,64750.0,0.0634]
[1721278094018,0.0704,64753.0,64747.0,1.3577]
[1721278094019,0.0704,64753.0,64748.0,0.217844]
[1721278094215,0.0704,64749.0,64748.0,0.217844]
[1721278094417,0.0704,64749.0,64748.0,0.0634]
[1721278095878,0.0714,64749.0,64748.0,0.0754]
[1721278096042,0.0724,64749.0,64748.0,0.0764]
[1721278098249,0.0724,64749.0,64748.0,0.230844]
[1721278098864,0.0724,64749.0,64748.0,0.0764]
[1721278099069,0.0724,64749.0,64748.0,0.013]
[1721278100449,0.0724,64749.0,64748.0,0.167444]
[1721278102393,0.226842,64749.0,64748.0,0.013]
[1721278103574,0.0724,64749.0,64748.0,0.013]
[1721278104925,0.226842,64749.0,64748.0,0.02032043]
[1721278105969,0.002,64749.0,64748.0,0.02032043]
[1721278106173,0.0724,64749.0,64748.0,0.02032043]
[1721278109540,0.226842,64749.0,64748.0,0.02032043]
[1721278111456,1.5917816,64749.0,64748.0,0.02032043]
[1721278111664,1.5236106,64749.0,64748.0,0.02032043]
[1721278111855,1.5236106,64749.0,64748.0,0.013]
[1721278111856,1.56029385,64749.0,64748.0,0.013]
[1721278112006,1.65306722,64749.0,64748.0,0.013]
[1721278112213,1.96185979,64749.0,64745.0,0.000924]
[1721278112420,1.385116,64746.0,64745.0,0.000924]
[1721278112604,2.0595165,64746.0,64745.0,0.000924]
[1721278112801,2.10553048,64746.0,64745.0,0.000924]
[1721278113417,2.0595165,64746.0,64745.0,0.000924]
[1721278113640,2.21386607,64746.0,64745.0,0.000924]
[1721278114059,2.21486607,64746.0,64745.0,0.000924]
[1721278115255,2.21661403,64746.0,64745.0,0.003924]
[1721278115853,2.26661403,64746.0,64745.0,0.003924]
[1721278116468,2.26661403,64746.0,64738.0,1.276]
[1721278116469,1.081262,64739.0,64738.0,1.276]
[1721278116621,1.081262,64739.0,64731.0,0.009185]
[1721278116622,0.607749,64732.0,64731.0,0.009185]
[1721278116861,0.678149,64732.0,64731.0,0.009185]
[1721278117051,1.296081,64732.0,64731.0,0.009185]
[1721278118296,1.58934784,64732.0,64731.0,0.009185]
[1721278118695,1.59934784,64732.0,64731.0,0.009185]
[1721278119528,1.69211784,64732.0,64731.0,0.009185]
[1721278120062,1.75786784,64732.0,64731.0,0.009185]
[1721278120401,1.69611784,64732.0,64731.0,0.009185]
[1721278120648,1.70711784,64732.0,64731.0,0.009185]
[1721278121109,2.01608384,64732.0,64731.0,0.009185]
[1721278121312,2.05630229,64732.0,64731.0,0.009185]
[1721278121549,2.11122209,64732.0,64731.0,0.009185]
[1721278121768,2.12322209,64732.0,64731.0,0.009185]
[1721278121992,2.10622209,64732.0,64731.0,0.009185]
[1721278122241,2.04330229,64732.0,64731.0,0.009185]
[1721278122447,2.05530229,64732.0,64731.0,0.009185]
[1721278122656,2.04330229,64732.0,64731.0,0.009185]
[1721278123120,2.05630229,64732.0,64731.0,0.009185]
[1721278123480,2.04430229,64732.0,64731.0,0.009185]
[1721278124015,1.91841719,64732.0,64731.0,0.009185]
[1721278124430,1.87819874,64732.0,64731.0,0.009185]
[1721278130055,1.97819874,64732.0,64731.0,0.009185]
[1721278130755,2.03758531,64732.0,64731.0,0.009185]
[1721278132863,1.96718531,64732.0,64731.0,0.009185]
[1721278133066,2.19193488,64732.0,64731.0,0.009185]
[1721278133291,2.12153488,64732.0,64731.0,0.009185]
[1721278133489,2.19193488,64732.0,64731.0,0.009185]
[1721278134036,2.12153488,64732.0,64731.0,0.009185]
[1721278134227,2.19193488,64732.0,64731.0,0.009185]
[1721278138106,2.19193488,64732.0,64723.0,0.009174]
[1721278138107,1.842132,64730.0,64723.0,0.009174]
[1721278138359,0.247281,64720.0,64719.0,0.009185]
[1721278138554,1.60271831,64720.0,64719.0,0.009185]
[1721278139470,1.94805043,64720.0,64719.0,0.009185]
[1721278139711,2.04805043,64720.0,64719.0,0.009185]
[1721278139904,1.081647,64716.0,64715.0,0.00847]
[1721278140108,1.81925731,64716.0,64715.0,0.00847]
[1721278141117,1.86925731,64716.0,64715.0,0.00947]
[1721278141423,2.09885063,64716.0,64715.0,0.00947]
[1721278142188,2.04885063,64716.0,64715.0,0.00947]
[1721278142421,2.19861722,64716.0,64715.0,0.00947]
[1721278143196,2.1617939,64716.0,64715.0,0.00947]
[1721278143508,2.19828848,64716.0,64715.0,0.00947]
[1721278144580,2.24828848,64716.0,64715.0,0.00947]
[1721278144706,2.2453191,64716.0,64715.0,0.00947]
[1721278145108,2.1953191,64716.0,64715.0,0.00947]
[1721278145400,1.629344,64712.0,64711.0,0.009185]
[1721278145603,2.1648925,64712.0,64711.0,0.009185]
[1721278147668,2.1648925,64712.0,64711.0,0.010185]
[1721278147669,2.0944925,64712.0,64711.0,0.010185]
[1721278147791,1.70148193,64712.0,64711.0,0.010185]
[1721278147994,1.55568193,64712.0,64711.0,0.010185]
[1721278148423,1.56268193,64712.0,64711.0,0.010185]
[1721278148892,1.56268193,64712.0,64711.0,0.009185]
[1721278149247,1.56968193,64712.0,64711.0,0.009185]
[1721278149425,1.7240315,64712.0,64711.0,0.009185]
[1721278151059,0.53400819,64712.0,64711.0,0.155085]
[1721278151257,0.23893,64712.0,64711.0,0.155085]
[1721278151473,0.547991,64712.0,64711.0,0.16229427]
[1721278151644,0.547991,64712.0,64711.0,0.155085]
[1721278151876,0.6336948,64712.0,64711.0,0.155085]
[1721278152082,0.9427558,64712.0,64711.0,0.16229427]
[1721278152309,0.9427558,64712.0,64711.0,0.009185]
[1721278152310,1.311484,64712.0,64711.0,0.009185]
[1721278152722,1.304484,64712.0,64711.0,0.009185]
[1721278152923,1.310484,64712.0,64711.0,0.009185]
[1721278153316,1.303484,64712.0,64711.0,0.009185]
[1721278153477,1.297484,64712.0,64711.0,0.009185]
[1721278153693,1.304484,64712.0,64711.0,0.009185]
[1721278154499,1.45886574,64712.0,64711.0,0.009185]
[1721278154725,1.86669674,64712.0,64711.0,0.009185]
[1721278154935,2.00539674,64712.0,64711.0,0.009185]
[1721278155275,2.01239674,64712.0,64711.0,0.009185]
[1721278156065,2.14908146,64712.0,64711.0,0.009185]
[1721278156251,2.19908146,64712.0,64711.0,0.009185]
[1721278156979,2.14908146,64712.0,64711.0,0.009185]
[1721278157924,2.19908146,64712.0,64711.0,0.009185]
[1721278158441,1.676512,64709.0,64708.0,0.009185]
[1721278158647,2.25672166,64709.0,64708.0,0.009185]
[1721278158867,2.30932166,64709.0,64708.0,0.009185]
[1721278159070,2.34303694,64709.0,64708.0,0.009185]
[1721278159278,2.06916275,64709.0,64708.0,0.009185]
[1721278159478,2.18831051,64709.0,64708.0,0.009185]
[1721278159700,2.22751253,64709.0,64708.0,0.009185]
[1721278159867,2.23051253,64709.0,64708.0,0.009185]
[1721278161180,2.23051253,64709.0,64708.0,0.009085]
[1721278162381,2.23124238,64709.0,64708.0,0.009085]
[1721278163386,2.28124238,64709.0,64708.0,0.009085]
[1721278163588,2.28124238,64709.0,64693.0,0.025]
[1721278163589,1.316884,64694.0,64693.0,0.025]
[1721278163768,1.73302134,64694.0,64693.0,0.025]
[1721278164955,0.99764874,64694.0,64693.0,0.1023]
[1721278165187,0.99764874,64694.0,64693.0,0.1636]
[1721278165188,0.844267,64694.0,64693.0,0.1636]
[1721278165400,0.844267,64694.0,64693.0,0.1586]
[1721278165598,0.845267,64694.0,64693.0,0.1586]
[1721278165800,0.843267,64694.0,64693.0,0.1586]
[1721278166222,0.9697843,64694.0,64693.0,0.02]
[1721278166426,1.02029833,64694.0,64693.0,0.02]
[1721278167482,0.9697843,64694.0,64693.0,0.02]
[1721278167818,0.845267,64694.0,64693.0,0.02]
[1721278168385,0.89570081,64694.0,64693.0,0.02]
[1721278168767,0.58655381,64694.0,64693.0,0.02]
[1721278168943,0.89570081,64694.0,64693.0,0.02]
[1721278169508,0.05243381,64694.0,64693.0,0.1643]
[1721278169710,0.27740681,64694.0,64693.0,0.1643]
[1721278169909,0.226973,64694.0,64693.0,0.17153503]
[1721278170127,0.53612,64694.0,64693.0,0.17153503]
[1721278170487,1.5381433,64694.0,64693.0,0.02723503]
[1721278170695,1.57404801,64694.0,64693.0,0.02]
[1721278171875,1.5381433,64694.0,64693.0,0.02]
[1721278172088,1.57416177,64694.0,64693.0,0.02]
[1721278172284,1.76026177,64694.0,64693.0,0.02]
[1721278173148,1.59545677,64694.0,64693.0,0.02]
[1721278173343,1.1575213,64694.0,64693.0,0.1584]
[1721278173763,0.46572,64694.0,64693.0,0.1584]
[1721278173952,0.51620042,64694.0,64693.0,0.1584]
[1721278174152,0.51734004,64694.0,64693.0,0.1584]
[1721278174377,0.87703641,64694.0,64693.0,0.1584]
[1721278174579,0.774867,64694.0,64693.0,0.1584]
[1721278175696,0.8258773,64694.0,64693.0,0.1584]
[1721278175862,0.5167303,64694.0,64693.0,0.1584]
[1721278176062,0.46572,64694.0,64693.0,0.1584]
[1721278176672,0.774867,64694.0,64693.0,0.1584]
[1721278176862,0.46572,64694.0,64693.0,0.1584]
[1721278177200,0.156573,64694.0,64693.0,0.1584]